Cogmind - Beta 9.4 --- EXPLORER MODE // 2020.01.08 @ 11:42:41 // Winter2019/RPGLIKE Player: Solar Sloth Result: Destroyed by S-27 Virus with Autogun Performance ------------- Evolutions (4) 2000 Regions Visited (8) 1600 Robots Destroyed (44) 220 Value Destroyed (1443) 1443 Prototype IDs (23) 460 Alien Tech Used (0) 0 Bonus (389) 389 TOTAL SCORE: 6112 Bonus ------- High Alert Combat Kills 28 Follower Combat Kills 180 Aligned with FarCom 300 Friendly Fire -119 Cogmind --------- Core Integrity 0/600 Matter 245/300 Energy 150/150 System Corruption 0% Temperature Cool (0) Movement Flying (32) Location -6/Lower Caves Parts ------- > --- POWER (1) -------- Micro Nuclear Core > --- PROPULSION (2) --- Cooled VTOL Module Cooled VTOL Module > --- UTILITY (4) ------ Signal Interpreter Advanced Signal Interpreter Long-range Terrain Scanner Advanced Terrain Scan Processor > --- WEAPON (2) ------- Flak Gun Mining Claw > --- INVENTORY (3) ---- Lightning Gun Remote Datajack Peak State ------------ > --- POWER ------------ Micro Nuclear Core > --- PROPULSION ------- Cooled VTOL Module Cooled VTOL Module > --- UTILITY ---------- Signal Interpreter Advanced Signal Interpreter Long-range Terrain Scanner Advanced Terrain Scan Processor > --- WEAPON ----------- Flak Gun Mining Claw > --- INVENTORY -------- Lightning Gun Remote Datajack [Rating: 31] Favorites ----------- Power Micro Nuclear Core Engine Ion Engine Power Core Micro Nuclear Core Propulsion Xenon Bombardment Thruster Leg Potential Leg Flight Unit Xenon Bombardment Thruster Utility Signal Interpreter Device Long-range Terrain Scanner Processor Signal Interpreter Protection Light Armor Plating Weapon Mining Claw Energy Gun Lightning Gun Ballistic Gun Flak Gun Special Weapon Remote Datajack Slashing Weapon Mining Claw Build | -11 -10 -10 -10 -9 -8 -7 -6 -6 ------- Run | Scr Mat Min Exi Min Mat Fac Fac Low Slots Evolved 5 | 1 . 1 . . 1 2 . . Power . | . . . . . . . . . Propulsion 1 | . . . . . . 1 . . Utility 3 | 1 . 1 . . . 1 . . Weapon 1 | . . . . . 1 . . . Parts Attached 22 | 5 . . 1 . 4 12 . . Power 3 | 1 . . . . 1 1 . . Engine 2 | 1 . . . . 1 . . . Core 1 | . . . . . . 1 . . Reactor . | . . . . . . . . . Propulsion 4 | . . . 1 . . 3 . . Treads . | . . . . . . . . . Leg 1 | . . . 1 . . . . . Wheel . | . . . . . . . . . Hover . | . . . . . . . . . Flight 3 | . . . . . . 3 . . Utility 6 | 3 . . . . . 3 . . Device 1 | . . . . . . 1 . . Storage . | . . . . . . . . . Processor 3 | 1 . . . . . 2 . . Hackware . | . . . . . . . . . Protection 2 | 2 . . . . . . . . Artifact . | . . . . . . . . . Weapon 9 | 1 . . . . 3 5 . . Energy Gun 4 | . . . . . 2 2 . . Energy Cannon . | . . . . . . . . . Ballistic Gun 2 | 1 . . . . . 1 . . Ballistic Cannon . | . . . . . . . . . Launcher . | . . . . . . . . . Special Weapon 1 | . . . . . 1 . . . Impact Weapon . | . . . . . . . . . Slashing Weapon 2 | . . . . . . 2 . . Piercing Weapon . | . . . . . . . . . Special Melee Weapon . | . . . . . . . . . Unidentified Prototypes 1 | . . . . . . 1 . . Parts Lost 1 | . . . . . . 1 . . Power . | . . . . . . . . . Propulsion . | . . . . . . . . . Utility 1 | . . . . . . 1 . . Weapon . | . . . . . . . . . Highest Loss Streak 1 | . . . . . . 1 . . Average Slot Usage (%) 81 | . 80 74 67 66 69 88 100 100 Engine 8 | . 20 18 16 16 14 3 . . Core 5 | . . . . . . 9 11 11 Flight 7 | . . . . . . 12 22 22 Device 2 | . . . . . . 4 11 11 Processor 22 | . 20 18 16 16 14 26 33 33 Protection 9 | . 20 18 16 16 14 5 . . Energy Gun 5 | . . . . . 11 8 . . Ballistic Gun 10 | . 20 18 16 16 3 8 11 11 Special Weapon 1 | . . . . . 9 . . . Slashing Weapon 5 | . . . . . . 9 11 11 Naked Turns . | . . . . . . . . . Heaviest Build 20 | 9 9 9 9 9 19 20 14 14 Greatest Support 25 | 13 13 13 13 13 18 25 25 25 Greatest Overweight (x) 1 | . . . . . 1 1 . . Average Overweight (x) . | . . . . . . . . . Largest Inventory Capacity 3 | 2 3 3 3 3 3 3 3 3 Average Capacity 2 | 2 2 3 3 3 3 3 3 3 Most Carried 3 | 2 3 3 3 3 3 3 2 2 Average Carried 2 | 1 2 2 3 3 2 2 2 2 Final Capacity 3 | 2 3 3 3 3 3 3 3 3 Final Carried 3 | 2 3 3 3 3 3 2 2 2 Class Distribution -------------------- 56% | Hacker-Scout 34% | Hacker-Mutant 8% | Hacker-Skirmisher Dominant Class ---------------- Hacker-Mutant | -10/Materials Hacker-Mutant | -10/Mines Hacker-Mutant | -10/Exiles Hacker-Scout | -9/Mines Hacker-Mutant | -8/Materials Hacker-Scout | -7/Factory Hacker-Scout | -6/Factory Hacker-Scout | -6/Lower Caves Resources | -11 -10 -10 -10 -9 -8 -7 -6 -6 ----------- Run | Scr Mat Min Exi Min Mat Fac Fac Low Matter Collected 627 | 250 19 . 10 . 53 295 . . Remotely . | . . . . . . . . . Salvage Created 1633 | . 49 . . . 25 1476 83 . Parts 103 | . 7 . . . 3 91 1 1 Haulers Intercepted 9 | . . . . . . 8 1 . Recyclers Shooed . | . . . . . . . . . Parts Field Recycled . | . . . . . . . . . Retrieved Matter . | . . . . . . . . . Parts Self-Destructed . | . . . . . . . . . Prevented . | . . . . . . . . . Kills | -11 -10 -10 -10 -9 -8 -7 -6 -6 ------- Run | Scr Mat Min Exi Min Mat Fac Fac Low Combat Hostiles Destroyed 25 | . 2 . . . . 22 . 1 Melee 5 | . . . . . . 5 . . Guns 15 | . 2 . . . . 12 . 1 AOE 1 | . . . . . . 1 . . Classes Destroyed 11 | . 1 . . . 1 8 . 1 Worker 2 | . . . . . . 2 . . Builder 3 | . . . . . . 3 . . Hauler 9 | . . . . . . 8 1 . Mechanic 1 | . . . . . . 1 . . Operator 1 | . . . . . . 1 . . Watcher 2 | . . . . . 1 1 . . Swarmer 1 | . . . . . . . . 1 Grunt 15 | . 2 . . . . 13 . . Sentry 6 | . . . . . . 6 . . Programmer 3 | . . . . . . 3 . . Zionite 1 | . . . . . . 1 . . Best Kill Streak 6 | . 2 . . . 1 6 1 1 Combat Bots Only 4 | . 2 . . . . 4 . 1 Max Kills in Single Turn 4 | . 1 . . . 1 4 1 1 Gunslinging . | . . . . . . . . . Exploded 1 | . . . . . . 1 . . Melee 1 | . . . . . . 1 . . Uniques/NPCs Destroyed . | . . . . . . . . . Combat | -11 -10 -10 -10 -9 -8 -7 -6 -6 -------- Run | Scr Mat Min Exi Min Mat Fac Fac Low Damage Taken 1349 | . 104 . . . 11 908 95 231 Core 1056 | . 81 . . . 4 711 79 181 Absorbed by Shields . | . . . . . . . . . Redirected to Core 624 | . 46 . . . 4 389 42 143 Core Remaining (%) 82 | 100 . . . 86 100 43 . . Volleys Fired 121 | . 19 . . . 15 76 . 11 Largest 2 | . 1 . . . 1 2 . 1 Hottest 110 | . 20 . . . 55 110 . 28 Shots Fired 141 | . 19 . . . 15 96 . 11 Gun 141 | . 19 . . . 15 96 . 11 Cannon . | . . . . . . . . . Launcher . | . . . . . . . . . Special . | . . . . . . . . . Kinetic 69 | . 19 . . . 3 36 . 11 Thermal . | . . . . . . . . . Explosive . | . . . . . . . . . Electromagnetic 72 | . . . . . 12 60 . . Robot Hit Streak 23 | . 11 . . . 5 23 . 8 Robot Miss Streak 4 | . 1 . . . 2 4 . 3 Penetration Max . | . . . . . . . . . Secondary Targets 2 | . . . . . . 2 . . Max Gunslinging Chain 1 | . . . . . . 1 . . Shots Hit Robots 193 | . 18 . . . 10 148 6 11 Core Hits 109 | . 6 . . . 4 87 2 10 Critical Hits 1 | . . . . . . 1 . . Critical Kills . | . . . . . . . . . Critical Parts Destroyed 1 | . . . . . . 1 . . Melee Attacks 108 | . . . . . . 97 11 . Impact . | . . . . . . . . . Slashing 108 | . . . . . . 97 11 . Piercing . | . . . . . . . . . Sneak Attacks 11 | . . . . . . 9 2 . Combat Hostiles . | . . . . . . . . . Follow-up Attacks . | . . . . . . . . . Damage Inflicted 5483 | . 148 . . . 212 4749 174 200 Guns 2641 | . 148 . . . 212 2081 . 200 Cannons . | . . . . . . . . . Explosions 780 | . . . . . . 780 . . Melee 2062 | . . . . . . 1888 174 . Ramming . | . . . . . . . . . Kinetic 1318 | . 148 . . . 13 957 . 200 Thermal 780 | . . . . . . 780 . . Explosive . | . . . . . . . . . Electromagnetic 1323 | . . . . . 199 1124 . . Impact . | . . . . . . . . . Slashing 2062 | . . . . . . 1888 174 . Piercing . | . . . . . . . . . Highest Corruption . | . . . . . . . . . Average Corruption . | . . . . . . . . . Corruption Purged . | . . . . . . . . . Overload Shots . | . . . . . . . . . Overflow Damage 197 | . . . . . . 197 . . Projectiles . | . . . . . . . . . Explosions 142 | . . . . . . 142 . . Melee 55 | . . . . . . 55 . . Knockbacks . | . . . . . . . . . Impact . | . . . . . . . . . Kinetic . | . . . . . . . . . Secondary . | . . . . . . . . . Self-Inflicted Damage . | . . . . . . . . . Shots . | . . . . . . . . . Rammed . | . . . . . . . . . Targets Rammed . | . . . . . . . . . Kicked . | . . . . . . . . . Crushed . | . . . . . . . . . Highest Temperature 469 | . 15 . . . 160 469 3 . Average Temperature 138 | . 6 . . . 64 159 2 . Received Heat Transfer 687 | . 111 . . . . 528 48 . Effects 10 | . . . . . . 10 . . Shutdowns 2 | . . . . . . 2 . . Energy Bleed 3 | . . . . . . 3 . . Interference 2 | . . . . . . 2 . . Matter Decay 1 | . . . . . . 1 . . Damage (minor) 2 | . . . . . . 2 . . Siege Activations . | . . . . . . . . . Robots Corrupted 4 | . . . . . . 4 . . Combat Hostiles 4 | . . . . . . 4 . . Parts Fried 8 | . . . . . . 8 . . Impact Corruptions . | . . . . . . . . . Robots Melted . | . . . . . . . . . Combat Hostiles . | . . . . . . . . . Parts Melted . | . . . . . . . . . Heat Transferred 600 | . . . . . . 600 . . Parts Sabotaged . | . . . . . . . . . Parts Stolen . | . . . . . . . . . Parts Stripped . | . . . . . . . . . Power Chain Reactions 1 | . . . . . . 1 . . Missiles Intercepted . | . . . . . . . . . Alert | -11 -10 -10 -10 -9 -8 -7 -6 -6 ------- Run | Scr Mat Min Exi Min Mat Fac Fac Low Peak Influence 548 | . 53 50 . . 117 548 221 . Average Influence 125 | . 16 39 . . 56 187 204 . Maximum Alert Level 2 | . . . . . . 2 1 . Low Security (%) 77 | 100 100 100 . 100 100 64 22 . Level 1 18 | . . . . . . 27 77 . Level 2 4 | . . . . . . 7 . . Level 3 . | . . . . . . . . . Level 4 . | . . . . . . . . . Level 5 . | . . . . . . . . . High Security . | . . . . . . . . . Max Security . | . . . . . . . . . Squads Dispatched 9 | . . . . . . 9 . . Investigation 2 | . . . . . . 2 . . Extermination 1 | . . . . . . 1 . . Reinforcement 2 | . . . . . . 2 . . Assault . | . . . . . . . . . Garrison 4 | . . . . . . 4 . . Intercept . | . . . . . . . . . Construction Impeded . | . . . . . . . . . Haulers Reinforced 2 | . . . . . . 2 . . Stealth | -11 -10 -10 -10 -9 -8 -7 -6 -6 --------- Run | Scr Mat Min Exi Min Mat Fac Fac Low Distress Signals 6 | . . . . . 1 5 . . Communications Jammed . | . . . . . . . . . Distress Signals . | . . . . . . . . . Times Spotted 65 | . 2 3 . . 6 50 1 3 Peak Tracking Total 4 | . 2 2 . . 2 4 1 3 Tactical Retreats 9 | . . 1 . . . 8 . . Traps | -11 -10 -10 -10 -9 -8 -7 -6 -6 ------- Run | Scr Mat Min Exi Min Mat Fac Fac Low Traps Triggered . | . . . . . . . . . Indirectly . | . . . . . . . . . Trap Hack Attempts . | . . . . . . . . . Triggered . | . . . . . . . . . Disarmed . | . . . . . . . . . Reprogrammed 6 | . . . . . . 6 . . Reused 1 | . . . . . . 1 . . Traps Extracted . | . . . . . . . . . Installed . | . . . . . . . . . Triggered 2 | . . . . . . 2 . . Machines | -11 -10 -10 -10 -9 -8 -7 -6 -6 ---------- Run | Scr Mat Min Exi Min Mat Fac Fac Low Machines Disabled 9 | . . . . . . 9 . . Max in Single Turn 5 | . . . . . . 5 . . Garrison Access 1 | . . . . . . 1 . . Machines Sabotaged . | . . . . . . . . . Garrisons Compromised . | . . . . . . . . . Overloaded Fab Kills . | . . . . . . . . . Fab Network Shutdowns . | . . . . . . . . . Hacking | -11 -10 -10 -10 -9 -8 -7 -6 -6 --------- Run | Scr Mat Min Exi Min Mat Fac Fac Low Machines Accessed 21 | . 3 . 2 . . 16 . . Terminals 14 | . 3 . . . . 11 . . Fabricators 1 | . . . . . . 1 . . Repair Stations . | . . . . . . . . . Recycling Units 1 | . . . . . . 1 . . Scanalyzers 1 | . . . . . . 1 . . Garrison Access 2 | . . . . . . 2 . . Total Hacks 43 | . 10 . 5 . . 28 . . Successful 38 | . 8 . 5 . . 25 . . Failed 5 | . 2 . . . . 3 . . Catastrophic . | . . . . . . . . . Database Lockouts . | . . . . . . . . . Manual 29 | . 9 . 1 . . 19 . . Terminals 29 | . 10 . . . . 19 . . Fabricators 4 | . . . . . . 4 . . Repair Stations . | . . . . . . . . . Recycling Units 1 | . . . . . . 1 . . Scanalyzers 2 | . . . . . . 2 . . Garrison Access 2 | . . . . . . 2 . . Terminal Hacks 18 | . 4 . 5 . . 9 . . Record 4 | . . . 4 . . . . . Part Schematic 1 | . 1 . . . . . . . Robot Analysis 1 | . . . . . . 1 . . Level Access Points 1 | . . . . . . 1 . . Branch Access Points 1 | . 1 . . . . . . . Terminal Index 1 | . . . . . . 1 . . Alert Level 1 | . . . . . . 1 . . Unreport Threat 1 | . . . . . . 1 . . Reprogram Traps 1 | . . . . . . 1 . . Hauler Manifests 3 | . 1 . . . . 2 . . Registered Prototypes 1 | . . . . . . 1 . . Zone Layout 1 | . 1 . . . . . . . EX-Prototype ID Bank 1 | . . . 1 . . . . . Fabricator Hacks 2 | . . . . . . 2 . . Load Schematic 1 | . . . . . . 1 . . Build 1 | . . . . . . 1 . . Repair Station Hacks . | . . . . . . . . . Recycling Unit Hacks 1 | . . . . . . 1 . . Retrieve Components 1 | . . . . . . 1 . . Scanalyzer . | . . . . . . . . . Garrison Access Hacks 1 | . . . . . . 1 . . Seal Access 1 | . . . . . . 1 . . Unauthorized Hacks 36 | . 9 . . . . 27 . . Terminals 12 | . 4 . . . . 8 . . Track 2 | . 2 . . . . . . . Assimilate 7 | . . . . . . 7 . . Botnet 2 | . 2 . . . . . . . Detonate 1 | . . . . . . 1 . . Fabricators 1 | . . . . . . 1 . . Haulers 1 | . . . . . . 1 . . Repair Stations . | . . . . . . . . . Recycling Units . | . . . . . . . . . Scanalyzers 2 | . . . . . . 2 . . Researchers 1 | . . . . . . 1 . . Extract 1 | . . . . . . 1 . . Garrison Access 1 | . . . . . . 1 . . Reprogram 1 | . . . . . . 1 . . Data Cores Recovered 1 | . . . . . . 1 . . Used 1 | . . . . . . 1 . . Hacking Detections 9 | . 1 . . . . 8 . . Full Trace Events . | . . . . . . . . . Feedback Events . | . . . . . . . . . Feedback Blocked . | . . . . . . . . . Robot Schematics Acquired . | . . . . . . . . . Robots Built . | . . . . . . . . . Matter . | . . . . . . . . . Time . | . . . . . . . . . Total Robot Build Rating . | . . . . . . . . . Part Schematics Acquired 4 | . 1 . . . . 3 . . Parts Built 3 | . . . . . . 3 . . Matter 102 | . . . . . . 102 . . Time 25 | . . . . . . 25 . . Total Part Build Rating 3 | . . . . . . 3 . . Parts Repaired . | . . . . . . . . . Time . | . . . . . . . . . Parts Recycled . | . . . . . . . . . Recycled Matter . | . . . . . . . . . Retrieved Matter . | . . . . . . . . . Retrieved Components . | . . . . . . . . . Parts Scanalyzed . | . . . . . . . . . Part Schematics Acquired . | . . . . . . . . . Parts Damaged . | . . . . . . . . . Bothacking | -11 -10 -10 -10 -9 -8 -7 -6 -6 ------------ Run | Scr Mat Min Exi Min Mat Fac Fac Low Used RIF Installer . | . . . . . . . . . Robots Hacked . | . . . . . . . . . Non-combat . | . . . . . . . . . Combat . | . . . . . . . . . Robot Hacks Applied . | . . . . . . . . . Relay Couplers Released . | . . . . . . . . . Robots Rewired . | . . . . . . . . . Allies Hacked 1 | . . . . . . 1 . . Hacks Repelled . | . . . . . . . . . Allies | -11 -10 -10 -10 -9 -8 -7 -6 -6 -------- Run | Scr Mat Min Exi Min Mat Fac Fac Low Total Allies 12 | . . 3 . 2 . 7 . . Largest Group 4 | . . 3 2 4 4 4 2 2 Highest-Rated Group 77 | . . 40 32 77 77 62 52 52 Highest-Rated Ally 31 | . . 16 16 31 31 26 26 26 Total Orders . | . . . . . . . . . Ally Attacks 74 | . . 9 . . 34 31 . . Total Damage 908 | . . 121 . . 413 374 . . Kills 7 | . . 2 . . 4 1 . . Allies Corrupted . | . . . . . . . . . Allies Melted . | . . . . . . . . . Intel | -11 -10 -10 -10 -9 -8 -7 -6 -6 ------- Run | Scr Mat Min Exi Min Mat Fac Fac Low Robot Analysis Total 1 | . . . . . . 1 . . Derelict Logs Recovered 3 | . . 2 . . . . . 1 Drone Launches . | . . . . . . . . . Drone Recoveries . | . . . . . . . . . Exploration | -11 -10 -10 -10 -9 -8 -7 -6 -6 ------------- Run | Scr Mat Min Exi Min Mat Fac Fac Low Turns Passed 2224 | 31 104 281 154 184 219 1147 79 25 Spaces Moved 2734 | 42 108 439 255 335 196 1207 143 9 Core 1550 | 42 108 439 255 335 196 175 . . Treads . | . . . . . . . . . Legs . | . . . . . . . . . Wheels . | . . . . . . . . . Hover . | . . . . . . . . . Flight 1184 | . . . . . . 1032 143 9 Fastest Speed 32 | 50 50 50 50 50 50 32 32 32 Average Speed 49 | 50 50 50 50 50 75 46 32 32 Slowest Speed 100 | 50 50 50 50 50 100 100 32 32 Overloaded Moves . | . . . . . . . . . Propulsion Burnouts . | . . . . . . . . . Robots Hopped 11 | . . . . . . 11 . . Cave-ins Triggered . | . . . . . . . . . Time Travels 1 | . . . 1 . . . . . Exploration Rate (%) 36 | 4 30 86 62 77 16 40 5 4 Regions Visited 8 Branch Regions 4 Pre-discovered Areas 2 | . . 1 1 . . . . . Known Exits Taken 8 | 1 1 1 1 1 1 1 1 . Unknown Exits Taken . | . . . . . . . . . Scrap Searched 3 | . . 2 . 1 . . . . Spaces Dug 12 | . . . . . . 9 3 . Terrain Destroyed 58 | . . . . . . 55 3 . Melee 12 | . . . . . . 9 3 . Projectile . | . . . . . . . . . AOE 46 | . . . . . . 46 . . Actions | -11 -10 -10 -10 -9 -8 -7 -6 -6 --------- Run | Scr Mat Min Exi Min Mat Fac Fac Low Total 3237 | 49 142 500 280 350 253 1490 153 20 Wait 217 | . 15 60 24 16 29 73 . . Move 2706 | 41 107 438 254 334 195 1186 142 9 Hop 9 | . . . . . . 9 . . Pick Up 8 | 2 1 1 . . 1 3 . . Fast Attach 17 | 5 . . 1 . 4 7 . . Attach 1 | . . . . . . 1 . . Detach . | . . . . . . . . . Swap 4 | . . . . . . 4 . . Drop 14 | 1 . 1 1 . 4 7 . . Fire 121 | . 19 . . . 15 76 . 11 Melee 108 | . . . . . . 97 11 . Ram . | . . . . . . . . . Kick . | . . . . . . . . . Crush . | . . . . . . . . . Escape Stasis . | . . . . . . . . . Rewire . | . . . . . . . . . Trap . | . . . . . . . . . Miscellaneous 32 | . . . . . 5 27 . . Route ------- -11/Scrapyard -10/Materials (discovered 2 exits: *Min x2) -10/Mines (discovered 3 exits: *Mat x2 / *Exi) -10/Exiles -9/Mines -8/Materials (discovered 2 exits: *Fac x2) -7/Factory (discovered 5 exits: *Fac x4 / *Sto) -6/Factory (discovered 2 exits: *Low x2) -6/Lower Caves History --------- Turn | Location | Event 6 | -11/Scrapyard | Identified exit to Materials 6 | -11/Scrapyard | Discovered exit to Materials (range 15) 17 | -11/Scrapyard | Upgraded with Utility slot (x1) 32 | -11/Scrapyard | Entered Materials 55 | -10/Materials | Identified exit to Mines 136 | -10/Materials | Entered Mines 138 | -10/Mines | Assisted by bots powering up and referring to "LRC-V3" 159 | -10/Mines | Deemed a non-threat by the Exiles lab entrance 159 | -10/Mines | Identified exit to Exiles 159 | -10/Mines | Discovered exit to Exiles (range 5) 222 | -10/Mines | Identified exit to Materials 222 | -10/Mines | Discovered exit to Materials (range 5) 227 | -10/Mines | Learned 8 Materials zone layouts 231 | -10/Mines | Learned location of Mines (-9) 241 | -10/Mines | Joined a pair of Derelicts in attacking an 0b10 outpost 280 | -10/Mines | Discovered exit to Materials (range 9) 288 | -10/Mines | Received a Rocket Launcher from a helpful Derelict 290 | -10/Mines | Upgraded with Utility slot (x1) 311 | -10/Mines | Build established: Hacker-Mutant 417 | -10/Mines | Entered Exiles 417 | -10/Exiles | Accompanied by 2 allies 430 | -10/Exiles | Met 8R-AWN 439 | -10/Exiles | Met EX-HEX 454 | -10/Exiles | Met EX-BIN 460 | -10/Exiles | Aligned with FarCom system 460 | -10/Exiles | Given EX-Vault access code 472 | -10/Exiles | Opened EX-Vault 477 | -10/Exiles | Found Chronowheel 477 | -10/Exiles | Activated Chronowheel 477 | -10/Exiles | Spacetime reconverged on an earlier point 479 | -10/Exiles | Found Potential Leg 492 | -10/Exiles | Warned to stay clear of 0b10 Research branches 510 | -10/Exiles | Met EX-DEC 526 | -10/Exiles | Learned location of Zion (-6) 540 | -10/Exiles | Identified exit to Mines 540 | -10/Exiles | Discovered exit to Mines (range 15) 571 | -10/Exiles | Entered Mines 571 | -9/Mines | Accompanied by 2 allies 573 | -9/Mines | Reached level 2 695 | -9/Mines | Identified exit to Materials 695 | -9/Mines | Discovered exit to Materials (range 12) 755 | -9/Mines | Entered Materials 755 | -8/Materials | Accompanied by 4 allies 756 | -8/Materials | Identified exit to Factory 757 | -8/Materials | Reached level 3 757 | -8/Materials | Reached level 4 757 | -8/Materials | Reached level 5 757 | -8/Materials | Reached level 6 760 | -8/Materials | Led the pair of lost Derelicts to an unsafe place 824 | -8/Materials | Upgraded with Weapon slot (x1) 974 | -8/Materials | Entered Factory 974 | -7/Factory | Accompanied by 2 allies 976 | -7/Factory | Reached level 7 976 | -7/Factory | Reached level 8 976 | -7/Factory | Reached level 9 1003 | -7/Factory | Garrison activated, responded to threat 1024 | -7/Factory | Reached level 10 1076 | -7/Factory | Fabricated Mining Claw (x3) 1204 | -7/Factory | Identified exit to Storage 1204 | -7/Factory | Discovered exit to Storage (range 4) 1415 | -7/Factory | Reached level 11 1505 | -7/Factory | Build established: Hacker-Scout 1708 | -7/Factory | Upgraded with Utility slot (x1) 1818 | -7/Factory | Garrison activated, responded to threat 1827 | -7/Factory | Identified exit to Factory 1827 | -7/Factory | Discovered exit to Factory (range 22) 1904 | -7/Factory | Reached level 12 1923 | -7/Factory | Upgraded with Propulsion slot (x1) 2105 | -7/Factory | Core integrity fell below 50% 2121 | -7/Factory | Entered another Factory area 2121 | -6/Factory | Accompanied by 2 allies 2122 | -6/Factory | Core integrity fell below 50% 2123 | -6/Factory | Reached level 13 2188 | -6/Factory | Identified exit to Lower Caves 2188 | -6/Factory | Discovered exit to Lower Caves (range 11) 2190 | -6/Factory | Discovered exit to Lower Caves (range 12) 2200 | -6/Factory | Entered Lower Caves 2200 | -6/Lower Caves | Accompanied by 2 allies 2202 | -6/Lower Caves | Reached level 14 2203 | -6/Lower Caves | Learned Factory terminal intel 2210 | -6/Lower Caves | Core integrity fell below 20% 2225 | -6/Lower Caves | Destroyed by S-27 Virus with Autogun Last Messages --------------- 02121_ Receiving FarCom transmissions... 02122_ Administrator 4c reports 0b10 security level has lowered to 0. 02123_ Reached level 13. 02130_ Administrator 4c reveals location of hidden door. 02139_ Sneak attack on A-15 Conveyor. 02139_ A-15 Conveyor destroyed. 02140_ Administrator 4c reports 0b10 security level has risen to 1. 02163_ U-05 Engineer builds a Wall. 02165_ Sneak attack on U-05 Engineer. 02165_ Terrain Scan Processor ripped off. 02188_ EXIT=FOUND: LOWER CAVES 02193_ K-01 Serf collects debris. LOCATION=LOWER CAVES GOAL=ESCAPE 02201_ Administrator 4c reports 0b10 security level has lowered to 0. 02202_ Reached level 14. 02203_ Acquired derelict log, extracted data. Data stored: Factory terminal intel. 02215_ S-27 Virus destroyed. 02220_ Administrator 4c destroyed. Map ----- +----------------------------------------------------+ | ?????????????????????????????????????????????????? | | ?????????????????????????#???????????????????????? | | ???????????????????##?#???#??#?#?????????????????? | | ?????????????????#??#?###?####??#????????????????? | | ?????????????????#?##???###????###?#?????????????? | | ????????????#??##????##?##?##?###?##?##??????????? | | ??????????????##??#???##??###?????????#??????????? | | ??????????????#?#???#?#????#?##?#?###?#?#????????? | | ????????????##??#???####?#????#??###?##??#???????? | | ??????????##??##?#?###?##?###???#??#?????#???????? | | ???????##?#?##???##?##???#??????##???#???????????? | | ???????#????###?##??##???##??##?#?#??##?####?????? | | ?????????#??#???##????#####?#??##???####?????#???? | | ?????##?####??#?#??#?#??#??###??###?##???##?##?#?? | | ??????????#?#?#??##???????#?????#???#???##?#?#???? | | ??????#??#??#??#??#??###????#????##??#???"? ??#??? | | ???#??#?##?#??#????#???#??#?####??#?#?#??? ?###??? | | ??????#??#??#?###??#?#?#?#?#####??????#?? ????#??? | | ???#??###???????#??#?#??#??????#?#????#???????#??? | | ????#?????#???#?#?#?#?###????#####?###??"??#?###?? | | ??#?? #??#???????##???#???#?# ####?#???? "?????#? | | ??? ? ?## ? ?#### ?#???#### ####??# ????? ?## | | ??? ??? ??? ??# #??#?#??# ##??##?? ?????#? | | ??#?? ? ? ?????## ##????## #####??????#????? | | ???? ? ?? ????##[s ##??# ###?? ##?### #?? | | ?#??#???? ????#??# s @#### # ##?? ????????#? | | ???## ????#??????# % # # #?#? ?? ????#?? | | ???#?#? ?#?###?#?# ! ##? ???? #????? | | ???#?#? ?#?#??##?# #### #???????#????? | | ????#? #?#?#???# ##??# # ????# ? ?? | | ???#??? ? ??????## #?#??# # # ? ?? | | ??#?????? ???#?#?# ###?#?## # ## $ ? ? | | ???????? ??### ## ???#??# ###???###????? | | ??? ?#???? ? ???## ## ?? ?? # #??? ??# ???? | | ????##?????? ### ??#???? ##?? ?# ?? ?? | | ???????????? ? ?#? ##???### ### #????##? ??#? | | ??????#? ???#??? ? ???#???####???# #??? ? ?????? | | ???????##" ???? ???###??##?#??###### ?? ?????? | | ???????"????? ????? ?????#?#??#?#???# ???????? | | ???????? ???????? ?# ? ? ?#??#???##?####???#????? | | ??????????? ??? ???? ? ?#?###???? ?#?? ? ?????? | | ????????#?? ????? ##? ##?? ? ##?????????? | | ?????????? ????? ? ? ???#? ? #?? ???????? | | ?????????? ?? #? ?? ?? ? ??#???? ? ? ????????? | | ??????????? ## ??? ????####? ?? ? ? ???????? | | ?????????????????? ##??? #### ?? ?? ???????????? | | ????????????????? #??#???#????? ?? #????????????? | | ????????????????????##?###?##? ? ???????????????? | | ???????????????????#????#???? ???#??????????????? | | ?????????????????????????#? ?????#???????????????? | +----------------------------------------------------+ Best States ------------- Heat Dissipation 25 Energy Generation 15 Energy Capacity 275 Matter Stores 300 Matter Capacity 300 Sight Range 16 Robot Scan Range 12 Terrain Scan Range 24 Terrain Scan Density 210 Armor Coverage 150 Resistance: KI 35 Resistance: TH 45 Resistance: EX 35 Resistance: EM 35 Resistance: I 35 Resistance: S 35 Resistance: P 35 Power Shielding 33 Evasion (%) 63 Offensive Hacking 30 Defensive Hacking 10 Item Schematics ----------------- Mining Claw | -10/Materials | Hacked Imp. Signal Interpreter | -7/Factory | Extracted Powered Hammer | -7/Factory | Extracted Mic. Nuclear Core | -7/Factory | Extracted Robot Schematics ------------------ None Fabricated ------------ Mining Claw | x3 | -7/Factory Alien Tech Used ----------------- None Achievements -------------- None Challenges ------------ None RPGLIKE | -11 -10 -10 -10 -9 -8 -7 -6 -6 --------- Run | Scr Mat Min Exi Min Mat Fac Fac Low Levels Raised 13 | . . . . 1 4 6 1 1 XP Earned 25840 | 6000 250 767 350 1095 6254 8540 1984 600 XP Spent 9675 | 2625 2550 800 . . 1600 2100 . . Upgrades 25 | 11 7 1 . . 2 4 . . Propulsion Slot 1 | . . . . . . 1 . . Utility Slot 3 | 1 . 1 . . . 1 . . Weapon Slot 1 | . . . . . 1 . . . Mass Support 3 | 2 . . . . 1 . . . Inventory Capacity 3 | 2 1 . . . . . . . Sensor Range 6 | 6 . . . . . . . . Melee Accuracy 2 | . . . . . . 2 . . Hack Attack % 2 | . 2 . . . . . . . Hack Defense % 2 | . 2 . . . . . . . TH Resistance % 2 | . 2 . . . . . . . Protomatter Created 651 | . 59 . . . . 564 . 28 Integrity Restored 585 | . . . . . 102 483 . . Core 456 | . . . . . 85 371 . . Parts 129 | . . . . . 17 112 . . Protomatter Decayed 643 | . . 65 . . 58 520 . . Game ------ Seed GuidedChipKinecellerator Manual? 0 Play Time 00:32:04 Cumulative 116.4 hours Start 2020.01.08 @ 11:08:50 End 2020.01.08 @ 11:42:41 Sessions 1 Manual Loads 0 Difficulty Explorer Special Mode Winter2019/RPGLIKE Game No. 47 Rogue 21 Adventurer 0 Explorer 26 Win Type - Total 14 Types 11/0/0/0/1/0/2 Lore% 84 Gallery% 71 Achievement% 71 Wizard Run 0 Options --------- ASCII 0 Keyboard 0 Movement Arrows Keybinds 0 Fullscreen 1 Font 18/SmallcapsGlow Map View 76x50 Tactical HUD 1 Map Filters NONE Filters NONE Steam 1 RUN: ae574707-643d-4e46-9d72-5c7f3a6dba69